[Event "*** Titled Tuesday Blitz"]
[Site "Chess.com"]
[Date "2021.03.09"]
[Round "3"]
[White "BillieKimbah"]
[Black "PopMilan95"]
[Result "1-0"]
[WhiteElo "2878"]
[BlackElo "2605"]
[TimeControl "180+1"]
[EndTime "10:29:42 PST"]
[Termination "BillieKimbah won by resignation"]

1. Nf3 {[%clk 0:03:00.9]} 1... Nf6 {[%clk 0:02:59.4]} 2. g3 {[%clk 0:03:01.4]}
2... g6 {[%clk 0:02:59.4]} 3. Bg2 {[%clk 0:03:02]} 3... Bg7 {[%clk 0:03:00.1]}
4. d4 {[%clk 0:03:02.3]} 4... O-O {[%clk 0:02:59.9]} 5. O-O {[%clk 0:03:02.9]}
5... d6 {[%clk 0:03:00]} 6. a4 {[%clk 0:03:02.8]} 6... a5 {[%clk 0:02:59.1]} 7.
Nc3 {[%clk 0:03:01.4]} 7... Nbd7 {[%clk 0:02:51.5]} 8. e4 {[%clk 0:03:00.9]}
8... e5 {[%clk 0:02:51.5]} 9. h3 {[%clk 0:03:01.4]} 9... c6 {[%clk 0:02:50]} 10.
Re1 {[%clk 0:03:00.5]} 10... Re8 {[%clk 0:02:49.1]} 11. Bg5 {[%clk 0:02:59.9]}
11... Qb6 {[%clk 0:02:44.9]} 12. Rb1 {[%clk 0:02:58]} 12... exd4 {[%clk
0:02:40.8]} 13. Nxd4 {[%clk 0:02:56.9]} 13... Nc5 {[%clk 0:02:09.4]} 14. Nb3
{[%clk 0:02:24.5]} 14... Nxb3 {[%clk 0:02:02.6]} 15. cxb3 {[%clk 0:02:25.4]}
15... Be6 {[%clk 0:01:59.3]} 16. Qxd6 {[%clk 0:02:23.8]} 16... h6 {[%clk
0:01:27.6]} 17. Be3 {[%clk 0:02:13.6]} 17... Qxb3 {[%clk 0:01:25.9]} 18. Red1
{[%clk 0:02:12.1]} 18... Nd7 {[%clk 0:01:14.5]} 19. Bd4 {[%clk 0:02:08.3]} 19...
Bxd4 {[%clk 0:00:52.7]} 20. Rxd4 {[%clk 0:02:09.2]} 20... Qb6 {[%clk 0:00:53.5]}
21. b4 {[%clk 0:01:39.8]} 21... axb4 {[%clk 0:00:52.6]} 22. Rdxb4 {[%clk
0:01:37.8]} 22... Qc5 {[%clk 0:00:51.4]} 23. Qd2 {[%clk 0:01:35.3]} 23... b6
{[%clk 0:00:40.4]} 24. Ne2 {[%clk 0:01:31.2]} 24... h5 {[%clk 0:00:32.9]} 25.
Nd4 {[%clk 0:01:20.8]} 25... Qd6 {[%clk 0:00:28.6]} 26. Qc3 {[%clk 0:00:57.9]}
26... Rac8 {[%clk 0:00:27.8]} 27. Nxe6 {[%clk 0:00:52.7]} 27... Qxe6 {[%clk
0:00:23.8]} 28. Rd4 {[%clk 0:00:51.7]} 28... c5 {[%clk 0:00:19.6]} 29. Rd2
{[%clk 0:00:51.5]} 29... Ne5 {[%clk 0:00:17.9]} 30. Rbd1 {[%clk 0:00:50.8]}
30... h4 {[%clk 0:00:13.6]} 31. gxh4 {[%clk 0:00:49.8]} 31... Qe7 {[%clk
0:00:13.4]} 32. h5 {[%clk 0:00:49.9]} 32... gxh5 {[%clk 0:00:13.4]} 33. Rd6
{[%clk 0:00:49.1]} 33... Nc6 {[%clk 0:00:11.7]} 34. Qg3+ {[%clk 0:00:47.7]}
34... Kh7 {[%clk 0:00:11.8]} 35. Qf4 {[%clk 0:00:47.4]} 35... Nd4 {[%clk
0:00:04.1]} 36. Qh6+ {[%clk 0:00:32.4]} 36... Kg8 {[%clk 0:00:04.3]} 37. Rd5
{[%clk 0:00:28.2]} 37... Rc6 {[%clk 0:00:03.3]} 38. Rg5+ {[%clk 0:00:26.6]}
38... Rg6 {[%clk 0:00:03.9]} 39. Rxg6+ {[%clk 0:00:26.7]} 39... fxg6 {[%clk
0:00:04.8]} 40. Qxg6+ {[%clk 0:00:27.6]} 40... Kf8 {[%clk 0:00:05.6]} 41. Qxb6
{[%clk 0:00:25.5]} 41... Ne2+ {[%clk 0:00:04.5]} 42. Kf1 {[%clk 0:00:24.1]}
42... Nd4 {[%clk 0:00:04.3]} 43. a5 {[%clk 0:00:23.7]} 43... Rc8 {[%clk
0:00:03.4]} 44. a6 {[%clk 0:00:23.1]} 44... Qf7 {[%clk 0:00:03.7]} 45. a7 {[%clk
0:00:21.1]} 45... Qc4+ {[%clk 0:00:03.7]} 46. Kg1 {[%clk 0:00:19.3]} 46... Qg8
{[%clk 0:00:03.7]} 47. Qf6+ {[%clk 0:00:16.7]} 47... Qf7 {[%clk 0:00:03.7]} 48.
Qxf7+ {[%clk 0:00:17.1]} 48... Kxf7 {[%clk 0:00:04.6]} 49. e5 {[%clk 0:00:17.9]}
1-0

[Event "*** Titled Tuesday Blitz"]
[Site "Chess.com"]
[Date "2021.03.09"]
[Round "3"]
[White "CrushingKings"]
[Black "SchmakAttack"]
[Result "1-0"]
[WhiteElo "2402"]
[BlackElo "2557"]
[TimeControl "180+1"]
[EndTime "10:29:42 PST"]
[Termination "CrushingKings won by resignation"]

1. e4 {[%clk 0:03:00.9]} 1... e6 {[%clk 0:03:00.1]} 2. Nf3 {[%clk 0:03:00.6]}
2... d5 {[%clk 0:03:00.5]} 3. Nc3 {[%clk 0:03:00.8]} 3... Nf6 {[%clk 0:03:00.1]}
4. e5 {[%clk 0:03:00.9]} 4... Nfd7 {[%clk 0:03:00.3]} 5. d4 {[%clk 0:03:01.2]}
5... c5 {[%clk 0:03:01]} 6. dxc5 {[%clk 0:03:02.1]} 6... Nc6 {[%clk 0:03:00.2]}
7. Bf4 {[%clk 0:03:01.8]} 7... Bxc5 {[%clk 0:02:59.1]} 8. Bd3 {[%clk 0:03:02]}
8... a6 {[%clk 0:02:50.7]} 9. a3 {[%clk 0:03:01.1]} 9... b5 {[%clk 0:02:49.9]}
10. h4 {[%clk 0:03:00.5]} 10... h6 {[%clk 0:02:47.7]} 11. Qe2 {[%clk 0:02:59.1]}
11... Bb7 {[%clk 0:02:43.9]} 12. h5 {[%clk 0:02:59.1]} 12... Nd4 {[%clk
0:02:30.4]} 13. Nxd4 {[%clk 0:02:57.6]} 13... Bxd4 {[%clk 0:02:31.3]} 14. Kf1
{[%clk 0:02:58.5]} 14... Qc7 {[%clk 0:02:16.4]} 15. Re1 {[%clk 0:02:58.7]} 15...
Bxc3 {[%clk 0:01:18.6]} 16. bxc3 {[%clk 0:02:59.6]} 16... Qxc3 {[%clk
0:01:19.1]} 17. Rh3 {[%clk 0:02:48.8]} 17... Qc7 {[%clk 0:01:17.3]} 18. Rg3
{[%clk 0:02:44.4]} 18... Nc5 {[%clk 0:00:56.9]} 19. Rxg7 {[%clk 0:02:36.7]}
19... O-O-O {[%clk 0:00:57.4]} 20. Rc1 {[%clk 0:02:09.4]} 20... Na4 {[%clk
0:00:53]} 21. Qd2 {[%clk 0:01:48.3]} 21... d4 {[%clk 0:00:43.3]} 22. Qe2 {[%clk
0:01:20.5]} 22... Nc3 {[%clk 0:00:41]} 23. Qg4 {[%clk 0:01:20.5]} 23... Kb8
{[%clk 0:00:30]} 24. Qh4 {[%clk 0:01:10.3]} 24... Nd5 {[%clk 0:00:12.7]} 25. Bg3
{[%clk 0:00:36.9]} 25... Rdg8 {[%clk 0:00:11.1]} 26. Qg4 {[%clk 0:00:36.7]}
26... Qd8 {[%clk 0:00:08.7]} 27. Bh7 {[%clk 0:00:29.3]} 27... Rxg7 {[%clk
0:00:08.2]} 28. Qxg7 {[%clk 0:00:29.9]} 28... Qf8 {[%clk 0:00:08.2]} 29. Qxf8+
{[%clk 0:00:26.1]} 29... Rxf8 {[%clk 0:00:09.1]} 30. Rd1 {[%clk 0:00:27]} 30...
Nc3 {[%clk 0:00:05]} 31. Rxd4 {[%clk 0:00:24.6]} 31... Bd5 {[%clk 0:00:05.6]}
32. Bf4 {[%clk 0:00:19.6]} 32... Rh8 {[%clk 0:00:05.5]} 33. Bd3 {[%clk
0:00:19.3]} 33... Kc7 {[%clk 0:00:05.9]} 34. Bd2 {[%clk 0:00:18.2]} 34... Na4
{[%clk 0:00:06.2]} 35. Rf4 {[%clk 0:00:17.5]} 35... Rf8 {[%clk 0:00:05.3]} 36.
Bb4 {[%clk 0:00:16.7]} 36... Rh8 {[%clk 0:00:04.7]} 37. Rxf7+ {[%clk 0:00:17.2]}
37... Kc6 {[%clk 0:00:05.3]} 38. Bd2 {[%clk 0:00:15.2]} 38... Nb6 {[%clk
0:00:05.7]} 39. Rf6 {[%clk 0:00:14.9]} 39... Nd7 {[%clk 0:00:06.2]} 40. Rxh6
{[%clk 0:00:14.7]} 40... Rxh6 {[%clk 0:00:05.7]} 41. Bxh6 {[%clk 0:00:15]} 41...
Nxe5 {[%clk 0:00:06.6]} 42. Bg7 {[%clk 0:00:15.6]} 42... Ng4 {[%clk 0:00:04.6]}
43. f3 {[%clk 0:00:14]} 43... Ne3+ {[%clk 0:00:03.4]} 44. Ke2 {[%clk 0:00:14.1]}
44... Nf5 {[%clk 0:00:04.3]} 45. Bf8 {[%clk 0:00:13.4]} 45... Nd4+ {[%clk
0:00:03.9]} 46. Kf2 {[%clk 0:00:13.1]} 46... e5 {[%clk 0:00:03.9]} 47. h6 {[%clk
0:00:12.7]} 1-0

[Event "*** Titled Tuesday Blitz"]
[Site "Chess.com"]
[Date "2021.03.09"]
[Round "3"]
[White "FMJoseHerrera"]
[Black "esapunov"]
[Result "1-0"]
[WhiteElo "2527"]
[BlackElo "2742"]
[TimeControl "180+1"]
[EndTime "10:29:44 PST"]
[Termination "FMJoseHerrera won by resignation"]

1. Nf3 {[%clk 0:03:00.9]} 1... Nf6 {[%clk 0:02:59]} 2. g3 {[%clk 0:02:50.4]}
2... g6 {[%clk 0:02:58.7]} 3. Bg2 {[%clk 0:02:49]} 3... Bg7 {[%clk 0:02:59.4]}
4. d3 {[%clk 0:02:47.7]} 4... O-O {[%clk 0:03:00]} 5. Nc3 {[%clk 0:02:47.3]}
5... d6 {[%clk 0:02:59.8]} 6. h4 {[%clk 0:02:47.3]} 6... c5 {[%clk 0:02:55.1]}
7. h5 {[%clk 0:02:46.8]} 7... Nxh5 {[%clk 0:02:54.7]} 8. Bg5 {[%clk 0:02:46.5]}
8... f6 {[%clk 0:02:39.9]} 9. Be3 {[%clk 0:02:40.5]} 9... Nc6 {[%clk 0:02:38.5]}
10. Qd2 {[%clk 0:02:38.3]} 10... e5 {[%clk 0:02:38.6]} 11. Bh6 {[%clk
0:02:35.7]} 11... Be6 {[%clk 0:02:31.9]} 12. Bxg7 {[%clk 0:02:34.8]} 12... Kxg7
{[%clk 0:02:30]} 13. e4 {[%clk 0:02:19.2]} 13... b5 {[%clk 0:02:17]} 14. Nd5
{[%clk 0:01:59.5]} 14... Ne7 {[%clk 0:02:14.1]} 15. Ne3 {[%clk 0:01:53.8]} 15...
Qd7 {[%clk 0:02:08.3]} 16. Nh4 {[%clk 0:01:34.8]} 16... Kg8 {[%clk 0:01:51.7]}
17. Nhf5 {[%clk 0:01:28]} 17... Rab8 {[%clk 0:01:12.8]} 18. Bf3 {[%clk
0:01:05.9]} 18... Nxf5 {[%clk 0:00:44.3]} 19. exf5 {[%clk 0:01:05]} 19... Bxf5
{[%clk 0:00:44.7]} 20. g4 {[%clk 0:01:02.3]} 20... Nf4 {[%clk 0:00:38.8]} 21.
gxf5 {[%clk 0:01:00.9]} 21... d5 {[%clk 0:00:33.1]} 22. fxg6 {[%clk 0:00:54.1]}
22... hxg6 {[%clk 0:00:33.2]} 23. Nxd5 {[%clk 0:00:33.5]} 23... Kg7 {[%clk
0:00:22.7]} 24. Nxf4 {[%clk 0:00:32.3]} 24... exf4 {[%clk 0:00:23.1]} 25. Qxf4
{[%clk 0:00:32.4]} 25... Rbe8+ {[%clk 0:00:21.3]} 26. Kd2 {[%clk 0:00:31.4]}
26... Rh8 {[%clk 0:00:21.1]} 27. Rxh8 {[%clk 0:00:30.6]} 27... Rxh8 {[%clk
0:00:21.2]} 28. Rh1 {[%clk 0:00:30.6]} 28... Rxh1 {[%clk 0:00:21]} 29. Bxh1
{[%clk 0:00:31.5]} 29... a5 {[%clk 0:00:19.1]} 30. Be4 {[%clk 0:00:30.7]} 30...
b4 {[%clk 0:00:18.3]} 31. Qg3 {[%clk 0:00:29.5]} 31... f5 {[%clk 0:00:17.1]} 32.
Qe5+ {[%clk 0:00:29.4]} 32... Kh6 {[%clk 0:00:17.2]} 33. Bd5 {[%clk 0:00:27.8]}
33... a4 {[%clk 0:00:12.6]} 34. f4 {[%clk 0:00:27.8]} 34... Kh7 {[%clk 0:00:12]}
35. Bc4 {[%clk 0:00:23.9]} 35... Qa7 {[%clk 0:00:07.6]} 36. Qf6 {[%clk
0:00:20.6]} 36... Qb8 {[%clk 0:00:05.4]} 37. Qh4+ {[%clk 0:00:19.1]} 37... Kg7
{[%clk 0:00:04.4]} 38. Qe7+ {[%clk 0:00:19.3]} 38... Kh6 {[%clk 0:00:04.9]} 39.
Qg5+ {[%clk 0:00:18.1]} 39... Kg7 {[%clk 0:00:04.8]} 40. Ke3 {[%clk 0:00:15.7]}
40... Qd6 {[%clk 0:00:04.5]} 41. Kf3 {[%clk 0:00:14]} 41... a3 {[%clk
0:00:04.6]} 42. bxa3 {[%clk 0:00:13.9]} 42... bxa3 {[%clk 0:00:03.9]} 43. Bb3
{[%clk 0:00:13.5]} 43... Qd4 {[%clk 0:00:03.4]} 44. Qe7+ {[%clk 0:00:12.9]}
44... Kh6 {[%clk 0:00:03.8]} 45. Qf8+ {[%clk 0:00:12.8]} 45... Kh7 {[%clk
0:00:02.3]} 46. Bg8+ {[%clk 0:00:11.9]} 46... Kh8 {[%clk 0:00:02.1]} 47. Bf7+
{[%clk 0:00:12.1]} 47... Kh7 {[%clk 0:00:02.6]} 48. Qg8+ {[%clk 0:00:12.5]} 1-0

[Event "*** Titled Tuesday Blitz"]
[Site "Chess.com"]
[Date "2021.03.09"]
[Round "3"]
[White "mr_gustavo"]
[Black "swisspower96"]
[Result "0-1"]
[WhiteElo "2397"]
[BlackElo "2588"]
[TimeControl "180+1"]
[EndTime "10:29:44 PST"]
[Termination "swisspower96 won by resignation"]

1. d4 {[%clk 0:03:00.9]} 1... Nf6 {[%clk 0:02:59.8]} 2. c4 {[%clk 0:03:00.7]}
2... e6 {[%clk 0:03:00.3]} 3. Nc3 {[%clk 0:03:00]} 3... Bb4 {[%clk 0:03:00]} 4.
e3 {[%clk 0:03:00.4]} 4... O-O {[%clk 0:03:00]} 5. Nf3 {[%clk 0:03:00.1]} 5...
d5 {[%clk 0:03:00.4]} 6. Bd3 {[%clk 0:02:58.3]} 6... dxc4 {[%clk 0:02:59.2]} 7.
Bxc4 {[%clk 0:02:58.8]} 7... c5 {[%clk 0:02:59.9]} 8. O-O {[%clk 0:02:59]} 8...
cxd4 {[%clk 0:02:59.8]} 9. exd4 {[%clk 0:02:59.9]} 9... b6 {[%clk 0:03:00.3]}
10. Bg5 {[%clk 0:02:59.5]} 10... Bb7 {[%clk 0:02:57.5]} 11. Qe2 {[%clk 0:03:00]}
11... Nbd7 {[%clk 0:02:46.9]} 12. Rfd1 {[%clk 0:02:55.4]} 12... h6 {[%clk
0:02:42.8]} 13. Bh4 {[%clk 0:02:54.4]} 13... Rc8 {[%clk 0:02:11.6]} 14. Rac1
{[%clk 0:02:43.6]} 14... Be7 {[%clk 0:02:06.3]} 15. Ne5 {[%clk 0:02:30.1]} 15...
Nd5 {[%clk 0:01:49.5]} 16. Bxe7 {[%clk 0:02:23.3]} 16... Nxe7 {[%clk 0:01:37]}
17. Nxf7 {[%clk 0:02:08.8]} 17... Rxf7 {[%clk 0:01:37.1]} 18. Bxe6 {[%clk
0:01:59.3]} 18... Nf8 {[%clk 0:01:21.1]} 19. d5 {[%clk 0:01:26.6]} 19... Neg6
{[%clk 0:00:51.1]} 20. Bxf7+ {[%clk 0:00:57]} 20... Kxf7 {[%clk 0:00:50.3]} 21.
Qd3 {[%clk 0:00:33.7]} 21... Qg5 {[%clk 0:00:35.2]} 22. Re1 {[%clk 0:00:20.4]}
22... Kg8 {[%clk 0:00:33.8]} 23. Qf3 {[%clk 0:00:14.3]} 23... Nf4 {[%clk
0:00:26.2]} 24. g3 {[%clk 0:00:08.2]} 24... N8g6 {[%clk 0:00:26.1]} 25. Kf1
{[%clk 0:00:05.4]} 25... Ba6+ {[%clk 0:00:24.3]} 26. Kg1 {[%clk 0:00:05.1]}
26... Nd3 {[%clk 0:00:21.2]} 27. d6 {[%clk 0:00:03.9]} 27... Rf8 {[%clk
0:00:17.3]} 28. Qd5+ {[%clk 0:00:02.3]} 28... Qxd5 {[%clk 0:00:16.4]} 29. Nxd5
{[%clk 0:00:03.2]} 29... Nxc1 {[%clk 0:00:14.7]} 30. Rxc1 {[%clk 0:00:03.3]}
30... Rd8 {[%clk 0:00:10.4]} 31. Ne7+ {[%clk 0:00:03.5]} 31... Nxe7 {[%clk
0:00:10.3]} 32. dxe7 {[%clk 0:00:04.4]} 32... Re8 {[%clk 0:00:10.8]} 33. Rc7
{[%clk 0:00:05]} 33... Kf7 {[%clk 0:00:10.6]} 34. Rxa7 {[%clk 0:00:05.4]} 34...
Bc4 {[%clk 0:00:11.1]} 35. b3 {[%clk 0:00:04.8]} 35... Bd5 {[%clk 0:00:11.4]}
36. f4 {[%clk 0:00:02.3]} 36... Rxe7 {[%clk 0:00:11.7]} 37. Ra6 {[%clk
0:00:03.2]} 37... Re6 {[%clk 0:00:09.4]} 38. Ra7+ {[%clk 0:00:03.1]} 38... Kf6
{[%clk 0:00:09.7]} 39. Kf2 {[%clk 0:00:03.3]} 39... g5 {[%clk 0:00:10.3]} 40.
fxg5+ {[%clk 0:00:02.9]} 40... hxg5 {[%clk 0:00:11.2]} 41. Rc7 {[%clk
0:00:02.7]} 41... g4 {[%clk 0:00:11.1]} 42. Rc3 {[%clk 0:00:02.1]} 42... Rc6
{[%clk 0:00:11.3]} 43. Re3 {[%clk 0:00:02.2]} 43... Rc2+ {[%clk 0:00:10.9]} 44.
Re2 {[%clk 0:00:02.7]} 44... Rxe2+ {[%clk 0:00:11.1]} 45. Kxe2 {[%clk
0:00:03.6]} 45... Ke5 {[%clk 0:00:11.7]} 46. Ke3 {[%clk 0:00:04.5]} 46... b5
{[%clk 0:00:11.9]} 47. b4 {[%clk 0:00:03.1]} 47... Bxa2 {[%clk 0:00:11.7]} 0-1

[Event "*** Titled Tuesday Blitz"]
[Site "Chess.com"]
[Date "2021.03.09"]
[Round "3"]
[White "Artem_Sadovsky"]
[Black "Unknown_IM"]
[Result "1-0"]
[WhiteElo "2579"]
[BlackElo "2389"]
[TimeControl "180+1"]
[EndTime "10:29:44 PST"]
[Termination "Artem_Sadovsky won by checkmate"]

1. Nf3 {[%clk 0:03:00]} 1... d5 {[%clk 0:02:59.4]} 2. c4 {[%clk 0:03:00.4]} 2...
d4 {[%clk 0:02:56.2]} 3. e3 {[%clk 0:03:00.2]} 3... c5 {[%clk 0:02:47.3]} 4. b4
{[%clk 0:03:00.4]} 4... dxe3 {[%clk 0:02:42.7]} 5. fxe3 {[%clk 0:03:01.3]} 5...
cxb4 {[%clk 0:02:42.5]} 6. d4 {[%clk 0:03:02.2]} 6... Nf6 {[%clk 0:02:39.9]} 7.
Bd3 {[%clk 0:03:03.1]} 7... Bg4 {[%clk 0:02:34.9]} 8. O-O {[%clk 0:03:04]} 8...
Nc6 {[%clk 0:02:34.4]} 9. h3 {[%clk 0:03:00.4]} 9... Bxf3 {[%clk 0:02:27.3]} 10.
Qxf3 {[%clk 0:03:01.3]} 10... e6 {[%clk 0:02:27.4]} 11. Nd2 {[%clk 0:02:49]}
11... Be7 {[%clk 0:02:23.4]} 12. Ne4 {[%clk 0:02:42.9]} 12... Nxd4 {[%clk
0:02:12.2]} 13. exd4 {[%clk 0:02:41.9]} 13... Qxd4+ {[%clk 0:02:13.1]} 14. Kh1
{[%clk 0:02:07.7]} 14... Qxa1 {[%clk 0:02:12]} 15. Bh6 {[%clk 0:02:04.2]} 15...
Qxf1+ {[%clk 0:01:45.5]} 16. Qxf1 {[%clk 0:02:05.1]} 16... Nxe4 {[%clk
0:01:45.7]} 17. Bxe4 {[%clk 0:02:06]} 17... gxh6 {[%clk 0:01:46]} 18. Bxb7
{[%clk 0:01:50.8]} 18... Rd8 {[%clk 0:01:41.1]} 19. c5 {[%clk 0:01:48.2]} 19...
O-O {[%clk 0:01:33.3]} 20. Qf2 {[%clk 0:01:30.7]} 20... Rd1+ {[%clk 0:01:27.5]}
21. Kh2 {[%clk 0:01:29.8]} 21... Rc1 {[%clk 0:01:23.8]} 22. Qg3+ {[%clk
0:01:25.5]} 22... Kh8 {[%clk 0:01:18.1]} 23. c6 {[%clk 0:01:21.5]} 23... Rd8
{[%clk 0:01:12.9]} 24. Qe5+ {[%clk 0:01:19.6]} 24... Kg8 {[%clk 0:01:11]} 25.
Qg3+ {[%clk 0:00:58.4]} 25... Kf8 {[%clk 0:01:08.7]} 26. Qf2 {[%clk 0:00:59.3]}
26... Bg5 {[%clk 0:00:46.4]} 27. h4 {[%clk 0:00:52]} 27... Rd2 {[%clk
0:00:40.5]} 28. Qf3 {[%clk 0:00:41.3]} 28... Bxh4 {[%clk 0:00:31.5]} 29. c7
{[%clk 0:00:36.4]} 29... Rxc7 {[%clk 0:00:10.7]} 30. Qf4 {[%clk 0:00:36.8]}
30... Rdd7 {[%clk 0:00:08.5]} 31. Qxh6+ {[%clk 0:00:30.8]} 31... Ke8 {[%clk
0:00:08.1]} 32. Ba6 {[%clk 0:00:26.7]} 32... Be7 {[%clk 0:00:06.9]} 33. Bb5
{[%clk 0:00:26.1]} 33... Bd6+ {[%clk 0:00:06.7]} 34. Kh1 {[%clk 0:00:24.7]}
34... Be5 {[%clk 0:00:04.8]} 35. Bxd7+ {[%clk 0:00:24]} 35... Rxd7 {[%clk
0:00:05.7]} 36. g4 {[%clk 0:00:21.6]} 36... f6 {[%clk 0:00:03.2]} 37. Kg2 {[%clk
0:00:17.7]} 37... Kd8 {[%clk 0:00:02.9]} 38. Kf3 {[%clk 0:00:17.7]} 38... Kc7
{[%clk 0:00:03.1]} 39. Ke4 {[%clk 0:00:17.6]} 39... Rd4+ {[%clk 0:00:03.6]} 40.
Kf3 {[%clk 0:00:17.8]} 40... Rd7 {[%clk 0:00:04.5]} 41. Qf8 {[%clk 0:00:17.1]}
41... Bd6 {[%clk 0:00:04.4]} 42. Qxf6 {[%clk 0:00:17]} 42... e5 {[%clk
0:00:04.8]} 43. Ke4 {[%clk 0:00:16.7]} 43... Kc6 {[%clk 0:00:03.8]} 44. Qe6
{[%clk 0:00:16.3]} 44... Re7 {[%clk 0:00:02.5]} 45. Qc4+ {[%clk 0:00:15.8]}
45... Kd7 {[%clk 0:00:03.2]} 46. Kd5 {[%clk 0:00:16.7]} 46... e4 {[%clk
0:00:02.5]} 47. Qc6+ {[%clk 0:00:16.8]} 47... Kd8 {[%clk 0:00:03.4]} 48. Kxd6
{[%clk 0:00:16.5]} 48... e3 {[%clk 0:00:03.7]} 49. Qa8# {[%clk 0:00:15.8]} 1-0

[Event "*** Titled Tuesday Blitz"]
[Site "Chess.com"]
[Date "2021.03.09"]
[Round "3"]
[White "Tekushka"]
[Black "Goryachkina"]
[Result "1/2-1/2"]
[WhiteElo "2446"]
[BlackElo "2669"]
[TimeControl "180+1"]
[EndTime "10:29:45 PST"]
[Termination "Game drawn by repetition"]

1. e4 {[%clk 0:03:00.9]} 1... c5 {[%clk 0:02:59.6]} 2. Nf3 {[%clk 0:03:00.6]}
2... e6 {[%clk 0:02:59.8]} 3. d4 {[%clk 0:03:00.5]} 3... cxd4 {[%clk 0:02:59.8]}
4. Nxd4 {[%clk 0:03:00.8]} 4... Nf6 {[%clk 0:02:59.5]} 5. Nc3 {[%clk 0:03:00.5]}
5... Nc6 {[%clk 0:02:59.7]} 6. Ndb5 {[%clk 0:02:59.5]} 6... d6 {[%clk
0:02:59.4]} 7. Bf4 {[%clk 0:02:52.7]} 7... e5 {[%clk 0:02:59.6]} 8. Bg5 {[%clk
0:02:52.7]} 8... a6 {[%clk 0:02:59.8]} 9. Na3 {[%clk 0:02:52.8]} 9... b5 {[%clk
0:03:00]} 10. Nd5 {[%clk 0:02:49.5]} 10... Be7 {[%clk 0:02:59.8]} 11. Bxf6
{[%clk 0:02:49.5]} 11... Bxf6 {[%clk 0:02:59.4]} 12. c4 {[%clk 0:02:40.1]} 12...
b4 {[%clk 0:02:59.1]} 13. Nc2 {[%clk 0:02:39.7]} 13... a5 {[%clk 0:02:56.3]} 14.
g3 {[%clk 0:02:37.2]} 14... O-O {[%clk 0:02:54.2]} 15. h4 {[%clk 0:02:36.2]}
15... Be7 {[%clk 0:02:37.9]} 16. Bh3 {[%clk 0:02:30.2]} 16... Be6 {[%clk
0:02:35.2]} 17. Kf1 {[%clk 0:02:28.4]} 17... Rb8 {[%clk 0:02:29.6]} 18. b3
{[%clk 0:02:23.5]} 18... Qd7 {[%clk 0:02:27.5]} 19. Kg2 {[%clk 0:02:22.1]} 19...
Bd8 {[%clk 0:02:11.8]} 20. Qd3 {[%clk 0:02:17.4]} 20... Qa7 {[%clk 0:02:04]} 21.
Rad1 {[%clk 0:02:09.9]} 21... Qc5 {[%clk 0:01:56.9]} 22. Nde3 {[%clk 0:02:00.7]}
22... Bc7 {[%clk 0:01:49.1]} 23. Nf5 {[%clk 0:01:32.1]} 23... Bxf5 {[%clk
0:01:11.1]} 24. Bxf5 {[%clk 0:01:18.9]} 24... Bb6 {[%clk 0:01:05.2]} 25. Rd2
{[%clk 0:01:11.4]} 25... Nd4 {[%clk 0:00:58.3]} 26. Nxd4 {[%clk 0:01:00]} 26...
exd4 {[%clk 0:00:39.3]} 27. f4 {[%clk 0:00:34.4]} 27... g6 {[%clk 0:00:38.4]}
28. Bg4 {[%clk 0:00:34.4]} 28... Rfe8 {[%clk 0:00:38.2]} 29. Bf3 {[%clk
0:00:34.5]} 29... Re7 {[%clk 0:00:35.4]} 30. Qc2 {[%clk 0:00:18.5]} 30... a4
{[%clk 0:00:32.8]} 31. Rd3 {[%clk 0:00:16.4]} 31... axb3 {[%clk 0:00:31.7]} 32.
axb3 {[%clk 0:00:16.7]} 32... Ra7 {[%clk 0:00:31.1]} 33. Qd2 {[%clk 0:00:14.9]}
33... Rba8 {[%clk 0:00:28.9]} 34. Rc1 {[%clk 0:00:14.1]} 34... Ra2 {[%clk
0:00:24.9]} 35. Rc2 {[%clk 0:00:14.5]} 35... Rxc2 {[%clk 0:00:20.9]} 36. Qxc2
{[%clk 0:00:14.4]} 36... Qa5 {[%clk 0:00:20.9]} 37. e5 {[%clk 0:00:13.4]} 37...
dxe5 {[%clk 0:00:11.8]} 38. fxe5 {[%clk 0:00:12.2]} 38... Rd8 {[%clk 0:00:08.4]}
39. Qe2 {[%clk 0:00:10.6]} 39... Qc5 {[%clk 0:00:04.9]} 40. Bd5 {[%clk
0:00:10.4]} 40... Rxd5 {[%clk 0:00:04.7]} 41. cxd5 {[%clk 0:00:10.1]} 41...
Qxd5+ {[%clk 0:00:05.5]} 42. Qf3 {[%clk 0:00:10.5]} 42... Qc5 {[%clk 0:00:04.5]}
43. Qe4 {[%clk 0:00:10.2]} 43... Qc2+ {[%clk 0:00:03]} 44. Kf3 {[%clk
0:00:10.4]} 44... Qb1 {[%clk 0:00:02.8]} 45. Kg2 {[%clk 0:00:10.4]} 45... Qc2+
{[%clk 0:00:02.9]} 46. Kf3 {[%clk 0:00:10.4]} 46... Qb1 {[%clk 0:00:03.3]} 47.
Kg2 {[%clk 0:00:10.4]} 47... Qc2+ {[%clk 0:00:03.7]} 1/2-1/2